[Event "6th Cesme Open-A 2018"]
[Site "Cesme"]
[Date "2018.07.01"]
[Round "9.7"]
[White "Charkhalashvili, Inga"]
[Black "Sadikhov, Ulvi Ramil Oglu"]
[Result "0-1"]
[ECO "E60"]
[WhiteElo "2325"]
[BlackElo "2484"]
[Annotator "ChessBase"]
[PlyCount "92"]
[EventDate "2018.06.26"]
[EventType "swiss"]
[EventCountry "TUR"]
[SourceTitle "playchess.com"]
[Source "ChessBase"]
[SourceQuality "1"]
[TimeControl "5400+30"]

1. d4 {[%emt 0:00:30]} Nf6 {[%emt 0:03:30]} 2. c4 {[%emt 0:00:30]} g6 {[%emt 0:00:30]} 3. f3 {[%emt 0:00:00]} c5 {[%emt 0:00:30]} 4. e4 {[%emt 0:00:00]} cxd4 {[%emt 0:01:30]} 5. Qxd4 {[%emt 0:00:30]} Nc6 {[%emt 0:00:00]} 6. Qd1 {[%emt 0:01:30]} Bg7 {[%emt 0:01:00]} 7. Nc3 {[%emt 0:00:00]} O-O {[%emt 0:00:00]} 8. Be3 {[%emt 0:00:00]} e6 {[%emt 0:02:00]} 9. Be2 {[%emt 0:05:30]} d5 {[%emt 0:02:30]} 10. cxd5 {[%emt 0:02:30]} exd5 {[%emt 0:00:30]} 11. exd5 {[%emt 0:00:00]} Ne7 {[%emt 0:00:30]} 12. Bc4 {[%emt 0:13:00]} Nf5 {[%emt 0:07:30]} 13. Bf2 {[%emt 0:00:30]} Bh6 {[%emt 0:00:30]} 14. Nge2 {[%emt 0:02:30]} Ne3 {[%emt 0:01:30]} 15. Bxe3 {[%emt 0:00:30]} Bxe3 {[%emt 0:00:00]} 16. Qb3 {[%emt 0:01:30]} Qa5 {[%emt 0:05:00]} 17. Kf1 {[%emt 0:04:30]} a6 {[%emt 0:04:30]} 18. d6 {[%emt 0:05:30]} Ba7 {[%emt 0:01:30]} 19. Ng3 {[%emt 0:02:30]} Bf5 {[%emt 0:00:30]} 20. Rd1 {[%emt 0:07:30]} Qc5 {[%emt 0:02:30]} 21. Rd2 {[%emt 0:00:30]} Rad8 {[%emt 0:03:30]} 22. Na4 {[%emt 0:07:30]} Qc8 {[%emt 0:02:30]} 23. Nxf5 {[%emt 0:06:30]} Qxf5 {[%emt 0:01:30]} 24. Bd5 {[%emt 0:02:30]} Ng4 {[%emt 0:01:30]} 25. Be4 {[%emt 0:00:30]} Qf4 {[%emt 0:01:30]} 26. Ke1 {[%emt 0:09:30]} Be3 {[%emt 0:02:30]} 27. Rd5 {[%emt 0:01:30]} Nf2 {[%emt 0:10:30]} 28. g3 {[%emt 0:01:30]} Qh6 {[%emt 0:01:30]} 29. Rf1 {[%emt 0:00:30]} b5 {[%emt 0:00:30]} 30. Nc3 {[%emt 0:02:30]} Qxh2 {[%emt 0:01:30]} 31. Ne2 {[%emt 0:00:30]} Bb6 {[%emt 0:00:30]} 32. Qc3 {[%emt 0:09:28]} Qg2 {[%emt 0:03:30]} 33. Rd4 {[%emt 0:10:26]} Bxd4 {[%emt 0:00:30]} 34. Qxd4 {[%emt 0:00:30]} Nxe4 {[%emt 0:00:30]} 35. fxe4 {[%emt 0:00:30]} Rfe8 {[%emt 0:00:30]} 36. e5 {[%emt 0:00:30]} Qh3 {[%emt 0:00:30]} 37. Rf4 {[%emt 0:00:30]} Qh5 {[%emt 0:00:30]} 38. Re4 {[%emt 0:03:05]} Qh1+ {[%emt 0:02:30]} 39. Kd2 {[%emt 0:00:52]} Rxd6 {[%emt 0:00:30]} 40. exd6 {[%emt 0:00:18]} Rxe4 {[%emt 0:00:30]} 41. Qd3 {[%emt 0:00:44]} Re8 {[%emt 0:00:30]} 42. d7 {[%emt 0:01:01]} Rd8 {[%emt 0:00:30]} 43. Nf4 {[%emt 0:00:00]} Qc6 {[%emt 0:00:30]} 44. Nd5 {[%emt 0:00:00]} Rxd7 {[%emt 0:01:30]} 45. Nf6+ {[%emt 0:00:36]} Qxf6 {[%emt 0:00:30]} 46. Qxd7 {[%emt 0:00:30]} Qxb2+ {[%emt 0:00:00]} 0-1

[Event "6th Cesme Open-A 2018"]
[Site "Cesme"]
[Date "2018.07.01"]
[Round "9.8"]
[White "Bashirli, Nail Qoshqar"]
[Black "Barsov, Alexei"]
[Result "0-1"]
[ECO "C03"]
[WhiteElo "2385"]
[BlackElo "2371"]
[Annotator "NA"]
[PlyCount "134"]
[EventDate "2018.06.26"]
[EventType "swiss"]
[EventCountry "TUR"]
[SourceTitle "playchess.com"]
[Source "ChessBase"]
[SourceQuality "1"]
[TimeControl "5400+30"]

1. e4 {[%emt 0:14:30]} e6 {[%emt 0:00:30]} 2. d4 {[%emt 0:00:30]} d5 {[%emt 0:00:30]} 3. Nd2 {[%emt 0:00:30]} Be7 {[%emt 0:00:00]} 4. Bd3 {[%emt 0:00:00]} c5 {[%emt 0:00:00]} 5. dxc5 {[%emt 0:00:00]} Nf6 {[%emt 0:00:00]} 6. Qe2 {[%emt 0:00:30]} O-O {[%emt 0:00:00]} 7. Ngf3 {[%emt 0:00:00] C03: French Tarrasch: Unusual Black 3rd moves} a5 {[%emt 0:00:00]} 8. e5 {[%emt 0:01:00]} Nfd7 {[%emt 0:00:00]} 9. c4 {[%emt 0:02:30]} Na6 {[%emt 0:01:30]} 10. O-O {[%emt 0:00:30]} Naxc5 {[%emt 0:00:30]} 11. Bc2 {[%emt 0:00:30] LiveBook: 63 Games} dxc4 {[%emt 0:00:30]} 12. Rd1 {[%emt 0:19:30]} (12. Nd4 $14) 12... b5 {[%emt 0:01:30]} 13. Ne4 {[%emt 0:05:30]} Bb7 {[%emt 0:00:30]} 14. Nxc5 $1 {[%emt 0:02:30]} Bxc5 {[%emt 0:00:30] [#]} 15. Ng5 $146 {[%emt 0:00:30]} ({Predecessor:} 15. Bxh7+ Kxh7 {½-½ (23) Motylev,A (2658)-Vitiugov,N (2719) Chita 2015}) 15... g6 {[%emt 0:23:30]} 16. Be4 {[%emt 0:01:30]} Qc7 {[%emt 0:07:30]} 17. Bxb7 {[%emt 0:01:30]} Qxb7 {[%emt 0:00:30]} 18. Ne4 {[%emt 0:01:30] [#]} Be7 $1 {[%emt 0:00:30]} 19. Qf3 {[%emt 0:07:30]} Nc5 {[%emt 0:05:30]} 20. Nf6+ {[%emt 0:02:30]} Bxf6 {[%emt 0:00:30]} 21. Qxf6 {[%emt 0:00:00]} Ne4 {[%emt 0:00:00]} 22. Qh4 $1 {[%emt 0:00:00]} f5 {[%emt 0:00:00]} 23. Bh6 $2 {[%emt 0:04:30]} ({White must play} 23. exf6 $1 $11 Rf7 24. a4 (24. Bg5 Nxg5 25. Qxg5 Raf8 $11)) 23... Rfe8 {[%emt 0:14:30]} 24. Rd4 {[%emt 0:11:30]} c3 {[%emt 0:00:30]} 25. bxc3 {[%emt 0:03:30]} Nxc3 {[%emt 0:00:30]} 26. Rd6 {[%emt 0:02:24]} b4 {[%emt 0:06:30]} 27. Qc4 {[%emt 0:04:16]} Rac8 {[%emt 0:10:30]} 28. Qd3 {[%emt 0:00:30]} Nd5 {[%emt 0:00:00]} 29. h3 {[%emt 0:04:50]} a4 {[%emt 0:05:00]} 30. Rb1 {[%emt 0:00:38]} Rb8 {[%emt 0:00:30]} 31. Ra6 {[%emt 0:02:09]} Red8 {[%emt 0:12:32]} 32. Rxa4 {[%emt 0:03:03]} Nb6 {[%emt 0:01:57]} 33. Qxd8+ {[%emt 0:00:08]} Rxd8 {[%emt 0:00:19]} 34. Raxb4 {[%emt 0:00:00]} Rb8 {[%emt 0:04:03]} 35. Be3 {[%emt 0:00:09]} Qa8 {[%emt 0:00:30]} 36. Bxb6 {[%emt 0:03:42]} Qxa2 {[%emt 0:00:30]} 37. Kh2 {[%emt 0:00:00]} g5 {[%emt 0:00:20]} 38. Rd1 {[%emt 0:00:56]} (38. f3 $17) 38... Qe2 {[%emt 0:00:45]} 39. Rd7 {[%emt 0:01:41]} Qxe5+ {[%emt 0:02:56]} 40. g3 {[%emt 0:00:00]} Qe2 {[%emt 0:03:25]} 41. Kg2 {[%emt 0:02:42]} Qa6 {[%emt 0:00:30]} 42. Rd6 {[%emt 0:00:00]} Kf7 {[%emt 0:00:26]} 43. Rb2 {[%emt 0:00:27]} Rb7 {[%emt 0:00:42]} 44. Kh2 {[%emt 0:00:29]} Qa3 {[%emt 0:00:35]} 45. Rbd2 {[%emt 0:00:05]} Qb4 {[%emt 0:00:27]} 46. Bd8 {[%emt 0:00:35]} (46. Be3 {is a better defense.}) 46... h6 {[%emt 0:00:48]} 47. R6d4 {[%emt 0:00:30]} Qc3 {[%emt 0:00:00]} 48. R4d3 {[%emt 0:00:00]} Qc5 {[%emt 0:00:31]} 49. Rd4 {[%emt 0:00:33]} Qc1 {[%emt 0:00:38]} 50. Rd1 {[%emt 0:00:21]} Qb2 {[%emt 0:00:43]} 51. R1d2 {[%emt 0:00:12]} Qa1 {[%emt 0:00:05]} 52. Kg2 {[%emt 0:02:29]} (52. Rd1 $142 Qc3 53. R4d3) 52... Qa8 {[%emt 0:00:38]} (52... Rb1 $142 53. Kf3 Qa8+ 54. Ke2 Qa6+ 55. R2d3 e5 56. Rd7+ Ke8) 53. Kg1 {[%emt 0:00:37]} Rb1+ {[%emt 0:00:40]} 54. Rd1 {[%emt 0:00:00]} Qa1 {[%emt 0:00:17]} 55. Rxb1 {[%emt 0:00:15]} Qxb1+ {[%emt 0:00:53]} 56. Kg2 {[%emt 0:00:01]} Qb7+ {[%emt 0:00:26]} 57. Kg1 {[%emt 0:00:30]} Qb1+ {[%emt 0:00:30]} 58. Kg2 {[%emt 0:00:00]} e5 {[%emt 0:00:00]} 59. Rd2 {[%emt 0:00:02]} Qb7+ {[%emt 0:00:00]} 60. Kh2 {[%emt 0:00:12]} Qa7 {[%emt 0:01:06]} 61. h4 {[%emt 0:00:04]} g4 {[%emt 0:00:00]} 62. Kg1 {[%emt 0:01:31]} Qa1+ {[%emt 0:00:45]} 63. Kh2 {[%emt 0:00:09]} f4 {[%emt 0:00:55]} 64. gxf4 {[%emt 0:01:15]} exf4 {[%emt 0:00:01]} 65. Bb6 {[%emt 0:01:06]} Qf6 {[%emt 0:00:45]} 66. Bd8 {[%emt 0:01:33]} Qc3 {[%emt 0:00:13]} 67. Rd7+ {[%emt 0:00:23]} Ke8 {[%emt 0:00:20]} 0-1

[Event "6th Cesme Open-A 2018"]
[Site "Cesme"]
[Date "2018.07.01"]
[Round "9.10"]
[White "Agdelen, Huseyin Can"]
[Black "Ozen, Deniz"]
[Result "0-1"]
[ECO "C11"]
[WhiteElo "2276"]
[BlackElo "2408"]
[Annotator "ChessBase"]
[PlyCount "70"]
[EventDate "2018.06.26"]
[EventType "swiss"]
[EventCountry "TUR"]
[SourceTitle "playchess.com"]
[Source "ChessBase"]
[SourceQuality "1"]
[TimeControl "5400+30"]

1. e4 {[%emt 0:10:30]} e6 {[%emt 0:00:30]} 2. d4 {[%emt 0:00:30]} d5 {[%emt 0:00:30]} 3. Nc3 {[%emt 0:00:00]} Nf6 {[%emt 0:00:00]} 4. e5 {[%emt 0:00:00]} Nfd7 {[%emt 0:00:00]} 5. f4 {[%emt 0:00:30]} c5 {[%emt 0:00:30]} 6. Nf3 {[%emt 0:00:30]} Nc6 {[%emt 0:00:00]} 7. Be3 {[%emt 0:00:00]} Be7 {[%emt 0:00:00]} 8. Qd2 {[%emt 0:00:00]} O-O {[%emt 0:00:00]} 9. dxc5 {[%emt 0:00:30]} Nxc5 {[%emt 0:00:00]} 10. O-O-O {[%emt 0:00:30]} a6 {[%emt 0:00:00]} 11. Kb1 {[%emt 0:00:30]} b5 {[%emt 0:00:00]} 12. Bxc5 {[%emt 0:01:30]} Bxc5 {[%emt 0:00:00]} 13. Bd3 {[%emt 0:00:30]} f5 {[%emt 0:14:00]} 14. exf6 {[%emt 0:12:30]} Qxf6 {[%emt 0:00:30]} 15. Ne2 {[%emt 0:24:30]} Nb4 {[%emt 0:08:30]} 16. h4 {[%emt 0:12:30]} Nxd3 {[%emt 0:01:30]} 17. Qxd3 {[%emt 0:00:00]} Bd6 {[%emt 0:00:30]} 18. g4 {[%emt 0:03:00]} Qg6 {[%emt 0:02:30]} 19. Qc3 {[%emt 0:10:30]} Bb7 {[%emt 0:02:30]} 20. Ng5 {[%emt 0:04:04]} h6 {[%emt 0:04:30]} 21. Nf3 {[%emt 0:09:48]} Rac8 {[%emt 0:02:30]} 22. Ne5 {[%emt 0:05:41]} Bxe5 {[%emt 0:07:30]} 23. Qxe5 {[%emt 0:00:30]} Qxc2+ {[%emt 0:00:30]} 24. Ka1 {[%emt 0:00:00]} Qe4 {[%emt 0:00:00]} 25. Qxe4 {[%emt 0:00:03]} dxe4 {[%emt 0:00:00]} 26. g5 {[%emt 0:00:24]} Rcd8 {[%emt 0:01:30]} 27. gxh6 {[%emt 0:02:21]} Rxd1+ {[%emt 0:03:30]} 28. Rxd1 {[%emt 0:00:30]} gxh6 {[%emt 0:00:00]} 29. b4 {[%emt 0:00:00]} Bd5 {[%emt 0:01:00]} 30. Rg1+ {[%emt 0:02:27]} Kh7 {[%emt 0:01:30]} 31. Rd1 {[%emt 0:00:15]} Bc4 {[%emt 0:01:30]} 32. Rd7+ {[%emt 0:00:46]} Kg8 {[%emt 0:00:30]} 33. Ng3 {[%emt 0:01:06]} e3 {[%emt 0:00:30]} 34. Rd4 {[%emt 0:00:00]} e2 {[%emt 0:00:30]} 35. Re4 {[%emt 0:00:37]} Rxf4 {[%emt 0:00:00]} 0-1

[Event "6th Cesme Open-A 2018"]
[Site "Cesme"]
[Date "2018.07.01"]
[Round "9.11"]
[White "Yildiz Kadioglu, Betul Cemre"]
[Black "Topel, Zehra"]
[Result "1/2-1/2"]
[ECO "B38"]
[WhiteElo "2323"]
[BlackElo "2145"]
[Annotator "NA"]
[PlyCount "88"]
[EventDate "2018.06.26"]
[EventType "swiss"]
[EventCountry "TUR"]
[SourceTitle "playchess.com"]
[Source "ChessBase"]
[SourceQuality "1"]
[TimeControl "5400+30"]

1. e4 {[%emt 0:00:30]} c5 {[%emt 0:00:30]} 2. Nf3 {[%emt 0:00:30]} d6 {[%emt 0:00:30]} 3. d4 {[%emt 0:00:00]} cxd4 {[%emt 0:00:00]} 4. Nxd4 {[%emt 0:00:00]} Nf6 {[%emt 0:00:00]} 5. f3 {[%emt 0:00:00]} a6 {[%emt 0:01:30]} 6. c4 {[%emt 0:00:00]} g6 {[%emt 0:00:30]} 7. Nc3 {[%emt 0:00:00]} Bg7 {[%emt 0:00:30]} 8. Be3 {[%emt 0:00:00]} O-O {[%emt 0:01:30] LiveBook: 15 Partien} 9. Be2 {[%emt 0:00:30]} Nc6 {[%emt 0:00:30]} 10. O-O {[%emt 0:00:30]} Nd7 {[%emt 0:05:30] B38: Sicilian: Maroczy Bind with 5...Bg7 and 7...0-0} (10... Nxd4 11. Bxd4 Be6 12. f4 Rc8 13. b3 Ne8 14. Kh1 Bd7 15. a4 Bxd4 16. Qxd4 a5 17. Rad1 Ng7 18. Nd5 Bc6 19. Bg4 {½-½ (59) Howell,D (2670)-Fodor,T (2486) England 2015}) 11. Nb3 {[%emt 0:06:30]} b6 {[%emt 0:00:30]} 12. Rc1 {[%emt 0:01:30]} Bb7 {[%emt 0:00:30]} 13. Qd2 {[%emt 0:01:30]} Rc8 {[%emt 0:00:30] [#]} 14. Rfd1 $146 {[%emt 0:06:30]} ({Predecessor:} 14. Nd5 Nc5 15. Rfd1 Re8 16. Bf1 a5 17. Na1 Ba6 {1-0 (45) Shaposhnikov,E (2525)-Arakelov,I (2375) Moscow 2001}) 14... Nc5 {[%emt 0:08:30]} 15. Nd4 {[%emt 0:00:00]} Ne5 {[%emt 0:04:30]} 16. b3 {[%emt 0:05:00]} h5 {[%emt 0:05:30]} 17. h3 {[%emt 0:07:30]} Kh7 {[%emt 0:00:30]} 18. Qe1 {[%emt 0:02:30]} Nc6 {[%emt 0:04:30]} 19. Nxc6 {[%emt 0:03:30]} Bxc6 {[%emt 0:00:30]} 20. Nd5 {[%emt 0:06:30]} a5 {[%emt 0:01:30]} 21. g4 {[%emt 0:02:30]} (21. Nc3 $14) 21... e6 {[%emt 0:04:30]} 22. Nf4 {[%emt 0:00:30]} e5 {[%emt 0:00:00]} 23. Nd5 {[%emt 0:04:30]} Rb8 {[%emt 0:00:00]} 24. Qf2 {[%emt 0:07:30]} Rb7 {[%emt 0:03:30]} 25. Nxb6 {[%emt 0:06:30]} Ne6 {[%emt 0:02:30]} 26. Nd5 {[%emt 0:03:30]} Nd4 {[%emt 0:00:30]} ({Black should play} 26... a4 $14) 27. g5 {[%emt 0:02:30]} a4 {[%emt 0:00:30]} 28. bxa4 {[%emt 0:00:30]} Rb2 {[%emt 0:01:30]} 29. Rd2 {[%emt 0:00:30]} Rxd2 {[%emt 0:00:30]} 30. Bxd2 {[%emt 0:00:00]} Bxa4 {[%emt 0:00:30]} 31. Rb1 {[%emt 0:03:00]} f5 {[%emt 0:00:30]} 32. gxf6 {[%emt 0:00:30]} Bxf6 {[%emt 0:00:00]} 33. Rb7+ {[%emt 0:00:30]} Kh8 {[%emt 0:00:00]} 34. Bh6 {[%emt 0:11:30]} Bc6 {[%emt 0:02:30]} 35. Rb2 {[%emt 0:03:53]} Rf7 {[%emt 0:03:30]} 36. Be3 {[%emt 0:00:16]} Bg7 {[%emt 0:01:30]} 37. Bd1 {[%emt 0:01:15]} Qf8 {[%emt 0:02:30]} 38. Kg2 {[%emt 0:00:08]} Kh7 {[%emt 0:00:00]} 39. Nc3 {[%emt 0:04:28]} Bd7 {[%emt 0:01:00]} 40. Nb5 {[%emt 0:03:49]} Nxf3 {[%emt 0:02:30]} 41. Nxd6 $19 {[%emt 0:01:12]} (41. Bxf3 $11 Bxh3+ 42. Kg3 h4+ 43. Kh2 Rxf3 44. Qxh4+ Kg8 45. Rf2) 41... Bxh3+ {[%emt 0:04:30]} 42. Kh1 {[%emt 0:01:35]} Qxd6 {[%emt 0:00:30]} 43. Bxf3 {[%emt 0:04:07]} Bg4 {[%emt 0:00:30]} 44. Bc5 {[%emt 0:00:00]} Qd3 {[%emt 0:03:30]} 1/2-1/2

[Event "6th Cesme Open-A 2018"]
[Site "Cesme"]
[Date "2018.07.01"]
[Round "9.12"]
[White "Kamer, Kayra"]
[Black "Koksal, Ege"]
[Result "0-1"]
[ECO "A13"]
[WhiteElo "2181"]
[BlackElo "2356"]
[Annotator "ChessBase"]
[PlyCount "100"]
[EventDate "2018.06.26"]
[EventType "swiss"]
[EventCountry "TUR"]
[SourceTitle "playchess.com"]
[Source "ChessBase"]
[SourceQuality "1"]
[TimeControl "5400+30"]

1. c4 {[%emt 0:04:30]} Nf6 {[%emt 0:00:30]} 2. Nf3 {[%emt 0:00:00]} e6 {[%emt 0:00:30]} 3. b3 {[%emt 0:03:00]} b6 {[%emt 0:00:30]} 4. Bb2 {[%emt 0:00:30]} Bb7 {[%emt 0:00:00]} 5. e3 {[%emt 0:00:30]} Be7 {[%emt 0:00:00]} 6. Be2 {[%emt 0:00:30]} O-O {[%emt 0:00:30]} 7. O-O {[%emt 0:00:00]} d5 {[%emt 0:02:30]} 8. Ne5 {[%emt 0:03:00]} Nbd7 {[%emt 0:05:30]} 9. Bf3 {[%emt 0:01:30]} c5 {[%emt 0:01:30]} 10. d4 {[%emt 0:02:30]} Nxe5 {[%emt 0:06:30]} 11. dxe5 {[%emt 0:00:30]} Ne8 {[%emt 0:00:00]} 12. Qe2 {[%emt 0:03:30]} Qc8 {[%emt 0:01:00]} 13. Nc3 {[%emt 0:01:30]} Nc7 {[%emt 0:00:30]} 14. Rfd1 {[%emt 0:00:30]} Rd8 {[%emt 0:04:30]} 15. Rd2 {[%emt 0:00:30]} Bc6 {[%emt 0:03:30]} 16. Rad1 {[%emt 0:05:30]} Qb7 {[%emt 0:00:00]} 17. cxd5 {[%emt 0:01:30]} exd5 {[%emt 0:06:00]} 18. Qd3 {[%emt 0:01:30]} b5 {[%emt 0:04:30]} 19. Ne2 {[%emt 0:03:30]} Ne6 {[%emt 0:02:30]} 20. Nf4 {[%emt 0:06:30]} Nxf4 {[%emt 0:01:30]} 21. exf4 {[%emt 0:00:30]} d4 {[%emt 0:01:30]} 22. Bxc6 {[%emt 0:00:30]} Qxc6 {[%emt 0:00:00]} 23. Qg3 {[%emt 0:05:30]} Qe4 {[%emt 0:02:00]} 24. b4 {[%emt 0:01:30]} c4 {[%emt 0:01:30]} 25. Bxd4 {[%emt 0:00:30]} Bxb4 {[%emt 0:01:30]} 26. e6 {[%emt 0:00:30]} Qg6 {[%emt 0:00:30]} 27. Qxg6 {[%emt 0:05:30]} hxg6 {[%emt 0:02:30]} 28. exf7+ {[%emt 0:07:30]} Kxf7 {[%emt 0:00:30]} 29. Rc2 {[%emt 0:04:30]} Bc5 {[%emt 0:01:30]} 30. Rcd2 {[%emt 0:00:30]} Bb4 {[%emt 0:05:30]} 31. Rc2 {[%emt 0:00:30]} Rd5 {[%emt 0:00:30]} 32. Kf1 {[%emt 0:01:30]} a5 {[%emt 0:00:00]} 33. Ke2 {[%emt 0:00:30]} Rad8 {[%emt 0:00:00]} 34. a3 {[%emt 0:01:30]} Be7 {[%emt 0:08:30]} 35. Rcd2 {[%emt 0:01:30]} Bxa3 {[%emt 0:00:00]} 36. Bb6 {[%emt 0:01:30]} Rxd2+ {[%emt 0:01:00]} 37. Rxd2 {[%emt 0:00:30]} Rxd2+ {[%emt 0:00:30]} 38. Kxd2 {[%emt 0:00:30]} Bb4+ {[%emt 0:00:30]} 39. Kc2 {[%emt 0:00:00]} a4 {[%emt 0:00:00]} 40. f3 {[%emt 0:01:00]} Be1 {[%emt 0:00:00]} 41. Kd1 {[%emt 0:00:00]} Bc3 {[%emt 0:00:30]} 42. Kc2 {[%emt 0:00:00]} Be1 {[%emt 0:00:30]} 43. Kd1 {[%emt 0:00:30]} Bh4 {[%emt 0:00:30]} 44. g4 {[%emt 0:00:00]} b4 {[%emt 0:02:30]} 45. g5 {[%emt 0:00:00]} a3 {[%emt 0:00:30]} 46. Kc2 {[%emt 0:01:30]} b3+ {[%emt 0:00:30]} 47. Kb1 {[%emt 0:00:30]} Be1 {[%emt 0:00:30]} 48. Bd4 {[%emt 0:00:30]} c3 {[%emt 0:01:30]} 49. h4 {[%emt 0:00:30]} a2+ {[%emt 0:00:00]} 50. Ka1 {[%emt 0:00:00]} c2 {[%emt 0:00:00]} 0-1

[Event "6th Cesme Open-A 2018"]
[Site "Cesme"]
[Date "2018.07.01"]
[Round "9.13"]
[White "Gunduz, Umut Erdem"]
[Black "Haznedaroglu, Kivanc"]
[Result "0-1"]
[ECO "B23"]
[WhiteElo "2130"]
[BlackElo "2472"]
[Annotator "ChessBase"]
[PlyCount "119"]
[EventDate "2018.06.26"]
[EventType "swiss"]
[EventCountry "TUR"]
[SourceTitle "playchess.com"]
[Source "ChessBase"]
[SourceQuality "1"]
[TimeControl "5400+30"]

1. e4 {[%emt 0:18:30]} c5 {[%emt 0:00:30]} 2. Nc3 {[%emt 0:00:30]} a6 {[%emt 0:00:00]} 3. g3 {[%emt 0:00:00]} b5 {[%emt 0:00:00]} 4. Bg2 {[%emt 0:00:00]} Bb7 {[%emt 0:00:30]} 5. d3 {[%emt 0:00:00]} g6 {[%emt 0:00:00]} 6. f4 {[%emt 0:03:00]} Bg7 {[%emt 0:00:00]} 7. Nf3 {[%emt 0:01:30]} d6 {[%emt 0:00:30]} 8. O-O {[%emt 0:00:00]} Nc6 {[%emt 0:01:30]} 9. f5 {[%emt 0:07:00]} Nf6 {[%emt 0:00:30]} 10. h3 {[%emt 0:07:30]} Ne5 {[%emt 0:05:30]} 11. g4 {[%emt 0:05:30]} b4 {[%emt 0:04:30]} 12. Ne2 {[%emt 0:00:30]} Qb6 {[%emt 0:02:30]} 13. Nxe5 {[%emt 0:08:30]} dxe5 {[%emt 0:00:00]} 14. Be3 {[%emt 0:00:30]} g5 {[%emt 0:13:00]} 15. Bxg5 {[%emt 0:06:30]} h5 {[%emt 0:06:30]} 16. Ng3 {[%emt 0:00:30]} hxg4 {[%emt 0:01:30]} 17. hxg4 {[%emt 0:00:00]} c4+ {[%emt 0:01:30]} 18. Rf2 {[%emt 0:00:00]} Rg8 {[%emt 0:00:00]} 19. Nf1 {[%emt 0:03:30]} Bh6 {[%emt 0:01:00]} 20. Bxf6 {[%emt 0:09:30]} exf6 {[%emt 0:00:00]} 21. dxc4 {[%emt 0:04:30]} Bf8 {[%emt 0:01:00]} 22. Bf3 {[%emt 0:02:30]} Bc5 {[%emt 0:00:30]} 23. Qe2 {[%emt 0:00:30]} O-O-O {[%emt 0:01:30]} 24. Re1 {[%emt 0:00:30]} Rd4 {[%emt 0:03:30]} 25. Kg2 {[%emt 0:04:58]} Rxg4+ {[%emt 0:01:30]} 26. Bxg4 {[%emt 0:03:20]} Rxe4 {[%emt 0:02:30]} 27. Bf3 {[%emt 0:01:00]} Rxe2 {[%emt 0:00:30]} 28. Rfxe2 {[%emt 0:00:02]} Bxf3+ {[%emt 0:01:30]} 29. Kxf3 {[%emt 0:02:04]} Qc6+ {[%emt 0:01:30]} 30. Re4 {[%emt 0:00:12]} Qd7 {[%emt 0:01:30]} 31. Ng3 {[%emt 0:00:30]} Qd2 {[%emt 0:00:00]} 32. R1e2 {[%emt 0:00:00]} Qc1 {[%emt 0:00:00]} 33. b3 {[%emt 0:00:31]} Kd7 {[%emt 0:00:30]} 34. Rh4 {[%emt 0:02:22]} a5 {[%emt 0:02:30]} 35. Rh7 {[%emt 0:00:46]} Ke7 {[%emt 0:00:30]} 36. Rh8 {[%emt 0:04:47]} a4 {[%emt 0:02:30]} 37. Rc8 {[%emt 0:02:44]} Qf4+ {[%emt 0:02:30]} 38. Kg2 {[%emt 0:00:30]} Be3 {[%emt 0:00:30]} 39. Rc7+ {[%emt 0:00:06]} Ke8 {[%emt 0:00:30]} 40. Rc8+ {[%emt 0:00:07]} Kd7 {[%emt 0:00:00]} 41. Rf8 {[%emt 0:00:46]} Ke7 {[%emt 0:00:00]} 42. Rh8 {[%emt 0:03:24]} a3 {[%emt 0:00:30]} 43. Rh1 {[%emt 0:01:16]} Qd4 {[%emt 0:03:30]} 44. Rhe1 {[%emt 0:00:23]} Bf4 {[%emt 0:00:30]} 45. Re4 {[%emt 0:00:13]} Qc3 {[%emt 0:00:30]} 46. Nh5 {[%emt 0:01:07]} Bg5 {[%emt 0:02:30]} 47. R1e2 {[%emt 0:00:30]} Qb2 {[%emt 0:00:30]} 48. c5 {[%emt 0:00:07]} Kd7 {[%emt 0:00:30]} 49. Rc4 {[%emt 0:01:28]} Kc6 {[%emt 0:00:30]} 50. Re1 {[%emt 0:00:05]} Bd2 {[%emt 0:01:30]} 51. Rd1 {[%emt 0:00:36]} Bc3 {[%emt 0:00:30]} 52. Rd6+ {[%emt 0:00:25]} Kc7 {[%emt 0:00:30]} 53. Ng7 {[%emt 0:00:39]} Qxc2+ {[%emt 0:02:30]} 54. Kf3 {[%emt 0:00:01]} e4+ {[%emt 0:00:30]} 55. Rxe4 {[%emt 0:00:58]} Be5 {[%emt 0:00:00]} 56. Ne8+ {[%emt 0:00:54]} Kc8 {[%emt 0:00:00]} 57. Rc4 {[%emt 0:00:06]} Qxf5+ {[%emt 0:00:30]} 58. Ke3 {[%emt 0:00:58]} Qh3+ {[%emt 0:00:30]} 59. Ke4 {[%emt 0:00:00]} Qg2+ {[%emt 0:00:00]} 60. Ke3 {[%emt 0:01:00]} 0-1

[Event "6th Cesme Open-A 2018"]
[Site "Cesme"]
[Date "2018.07.01"]
[Round "9.14"]
[White "Danin, Alexandre"]
[Black "Tarlabasi, Emirhan"]
[Result "1-0"]
[ECO "C01"]
[WhiteElo "2539"]
[BlackElo "2117"]
[Annotator "ChessBase"]
[PlyCount "79"]
[EventDate "2018.06.26"]
[EventType "swiss"]
[EventCountry "TUR"]
[SourceTitle "playchess.com"]
[Source "ChessBase"]
[SourceQuality "1"]
[TimeControl "5400+30"]

1. e4 {[%emt 0:00:30]} e6 {[%emt 0:00:30]} 2. d4 {[%emt 0:00:30]} d5 {[%emt 0:00:30]} 3. Bd3 {[%emt 0:00:00]} dxe4 {[%emt 0:00:30]} 4. Bxe4 {[%emt 0:00:00]} Nf6 {[%emt 0:00:30]} 5. Bf3 {[%emt 0:00:00]} c5 {[%emt 0:00:30]} 6. Ne2 {[%emt 0:00:00]} Be7 {[%emt 0:03:30]} 7. Nbc3 {[%emt 0:02:30]} Nc6 {[%emt 0:03:30]} 8. Be3 {[%emt 0:02:30]} cxd4 {[%emt 0:03:30]} 9. Nxd4 {[%emt 0:00:30]} Nxd4 {[%emt 0:01:30]} 10. Qxd4 {[%emt 0:00:00]} Qxd4 {[%emt 0:09:30]} 11. Bxd4 {[%emt 0:00:00]} Bd7 {[%emt 0:00:30]} 12. O-O-O {[%emt 0:06:30]} Bc6 {[%emt 0:02:30]} 13. Bxc6+ {[%emt 0:02:30]} bxc6 {[%emt 0:01:30]} 14. Rhe1 {[%emt 0:00:30]} Bb4 {[%emt 0:16:30]} 15. a3 {[%emt 0:08:30]} Bxc3 {[%emt 0:07:30]} 16. Bxc3 {[%emt 0:00:00]} Nd5 {[%emt 0:01:30]} 17. Bd4 {[%emt 0:00:00]} O-O {[%emt 0:06:30]} 18. c4 {[%emt 0:00:30]} Nb6 {[%emt 0:02:30]} 19. b3 {[%emt 0:00:00]} Rfc8 {[%emt 0:02:30]} 20. Re3 {[%emt 0:07:00]} Rc7 {[%emt 0:11:30]} 21. Rg3 {[%emt 0:00:30]} g6 {[%emt 0:01:30]} 22. Rgd3 {[%emt 0:00:30]} Rd7 {[%emt 0:07:02]} 23. a4 {[%emt 0:00:30]} e5 {[%emt 0:09:49]} 24. Bxe5 {[%emt 0:01:30]} Rad8 {[%emt 0:00:30]} 25. Rxd7 {[%emt 0:00:30]} Rxd7 {[%emt 0:00:00]} 26. Bd4 {[%emt 0:00:00]} Rb7 {[%emt 0:02:42]} 27. Re1 {[%emt 0:03:00]} Kf8 {[%emt 0:02:05]} 28. Bc5+ {[%emt 0:00:30]} Kg7 {[%emt 0:00:00]} 29. Re8 {[%emt 0:00:00]} Nd7 {[%emt 0:00:55]} 30. Bd4+ {[%emt 0:00:00]} Kh6 {[%emt 0:00:18]} 31. Re7 {[%emt 0:00:30]} c5 {[%emt 0:01:18]} 32. Bc3 {[%emt 0:00:30]} f5 {[%emt 0:01:51]} 33. h4 {[%emt 0:00:30]} Kh5 {[%emt 0:00:33]} 34. Rxh7+ {[%emt 0:00:30]} Kg4 {[%emt 0:00:02]} 35. Kc2 {[%emt 0:00:30]} f4 {[%emt 0:00:25]} 36. Rf7 {[%emt 0:01:30]} f3 {[%emt 0:00:26]} 37. Rxf3 {[%emt 0:00:00]} Kxh4 {[%emt 0:00:09]} 38. Rf7 {[%emt 0:00:00]} a6 {[%emt 0:00:31]} 39. Be1 {[%emt 0:00:30]} Kg5 {[%emt 0:00:41]} 40. f3 {[%emt 0:00:30]} 1-0